[Event "Titled Tuesday Blitz May 9 Late 2023"]
[White "Chabris, Christopher"]
[Black "Karas, Marek"]
[WhiteFideId "2005263"]
[BlackFideId "14928558"]
[WhiteElo "2352"]
[BlackElo "2233"]
[Result "0-1"]
[Round "04"]
[TimeControl "180+2"]
[Date "2023.05.09"]
[WhiteClock "0:00:00"]
[BlackClock "0:01:52"]

1. e4 {[%clk 0:03:00]}  e5 {[%clk 0:02:59]} 2. Nf3 {[%clk 0:03:00]}  c6 {[%clk 0:03:00]} 3. d4 {[%clk 0:02:55]}  exd4 {[%clk 0:02:57]} 4. Qxd4 {[%clk 0:02:55]}  d5 {[%clk 0:02:56]} 5. exd5 {[%clk 0:02:50]}  cxd5 {[%clk 0:02:55]} 6. Bb5+ {[%clk 0:02:48]}  Nc6 {[%clk 0:02:55]} 7. O-O {[%clk 0:02:47]}  Nf6 {[%clk 0:02:53]} 8. Re1+ {[%clk 0:02:47]}  Be7 {[%clk 0:02:53]} 9. Qc5 {[%clk 0:02:35]}  O-O {[%clk 0:02:45]} 10. Qe3 {[%clk 0:02:22]}  Ne4 {[%clk 0:02:41]} 11. Qb3 {[%clk 0:01:54]}  Be6 {[%clk 0:02:35]} 12. Qa4 {[%clk 0:01:42]}  Qb6 {[%clk 0:02:27]} 13. Be3 {[%clk 0:01:41]}  Bc5 {[%clk 0:02:27]} 14. Nbd2 {[%clk 0:01:19]}  Bxe3 {[%clk 0:02:23]} 15. Rxe3 {[%clk 0:01:18]}  Nc5 {[%clk 0:02:23]} 16. Qh4 {[%clk 0:00:54]}  Qxb5 {[%clk 0:02:22]} 17. Ng5 {[%clk 0:00:45]}  h6 {[%clk 0:02:22]} 18. Ndf3 {[%clk 0:00:35]}  Qxb2 {[%clk 0:02:18]} 19. Rae1 {[%clk 0:00:35]}  Rae8 {[%clk 0:02:10]} 20. Nh3 {[%clk 0:00:14]}  Qf6 {[%clk 0:02:03]} 21. Qg3 {[%clk 0:00:13]}  Bd7 {[%clk 0:01:59]} 22. Nf4 {[%clk 0:00:11]}  Rxe3 {[%clk 0:01:56]} 23. Rxe3 {[%clk 0:00:12]}  Re8 {[%clk 0:01:53]} 24. Nh5 {[%clk 0:00:00]}  Qa1+ {[%clk 0:01:52]} 0-1


[Site "https://www.chess.com"]

[Event "Titled Tuesday Blitz May 9 Late 2023"]
[White "Guzman Moneo, Alberto"]
[Black "Cruz, William Ferreira Da"]
[WhiteFideId "2209616"]
[BlackFideId "2118050"]
[WhiteElo "2157"]
[BlackElo "2223"]
[Result "0-1"]
[Round "04"]
[TimeControl "180+2"]
[Date "2023.05.09"]
[WhiteClock "0:00:00"]
[BlackClock "0:01:14"]

1. Nf3 {[%clk 0:03:00]}  g6 {[%clk 0:02:56]} 2. e4 {[%clk 0:03:00]}  d6 {[%clk 0:02:54]} 3. d4 {[%clk 0:03:00]}  Bg7 {[%clk 0:02:51]} 4. Bc4 {[%clk 0:03:00]}  e6 {[%clk 0:02:48]} 5. Bb3 {[%clk 0:03:00]}  Ne7 {[%clk 0:02:48]} 6. c3 {[%clk 0:02:59]}  O-O {[%clk 0:02:49]} 7. Bg5 {[%clk 0:02:56]}  f6 {[%clk 0:02:43]} 8. Be3 {[%clk 0:02:54]}  c6 {[%clk 0:02:43]} 9. Nbd2 {[%clk 0:02:52]}  d5 {[%clk 0:02:40]} 10. e5 {[%clk 0:02:41]}  f5 {[%clk 0:02:37]} 11. g3 {[%clk 0:02:28]}  h6 {[%clk 0:02:32]} 12. h4 {[%clk 0:02:28]}  c5 {[%clk 0:02:25]} 13. dxc5 {[%clk 0:02:26]}  Nd7 {[%clk 0:02:24]} 14. Bd4 {[%clk 0:02:23]}  Qc7 {[%clk 0:02:22]} 15. Bc2 {[%clk 0:02:09]}  Nxe5 {[%clk 0:02:20]} 16. b4 {[%clk 0:02:06]}  N7c6 {[%clk 0:02:20]} 17. Nxe5 {[%clk 0:02:01]}  Nxe5 {[%clk 0:02:18]} 18. Qe2 {[%clk 0:01:54]}  b6 {[%clk 0:02:15]} 19. O-O {[%clk 0:01:15]}  f4 {[%clk 0:02:07]} 20. Rae1 {[%clk 0:01:00]}  f3 {[%clk 0:02:03]} 21. Qd1 {[%clk 0:00:49]}  Ng4 {[%clk 0:01:54]} 22. Bxg7 {[%clk 0:00:42]}  Kxg7 {[%clk 0:01:53]} 23. Nxf3 {[%clk 0:00:41]}  e5 {[%clk 0:01:48]} 24. Nh2 {[%clk 0:00:38]}  Nxh2 {[%clk 0:01:45]} 25. Kxh2 {[%clk 0:00:38]}  Bb7 {[%clk 0:01:39]} 26. Qd3 {[%clk 0:00:37]}  Rf6 {[%clk 0:01:37]} 27. f4 {[%clk 0:00:34]}  e4 {[%clk 0:01:34]} 28. Qd4 {[%clk 0:00:32]}  bxc5 {[%clk 0:01:31]} 29. bxc5 {[%clk 0:00:33]}  Rc8 {[%clk 0:01:30]} 30. Rb1 {[%clk 0:00:18]}  Ba6 {[%clk 0:01:30]} 31. Rfd1 {[%clk 0:00:12]}  Qxc5 {[%clk 0:01:29]} 32. Bb3 {[%clk 0:00:10]}  Qxd4 {[%clk 0:01:24]} 33. Rxd4 {[%clk 0:00:10]}  Rxc3 {[%clk 0:01:20]} 34. Rxd5 {[%clk 0:00:10]}  Bc4 {[%clk 0:01:18]} 35. Rd7+ {[%clk 0:00:10]}  Rf7 {[%clk 0:01:18]} 36. Rxf7+ {[%clk 0:00:09]}  Kxf7 {[%clk 0:01:18]} 37. Bxc4+ {[%clk 0:00:09]}  Rxc4 {[%clk 0:01:18]} 38. Rb7+ {[%clk 0:00:09]}  Kf6 {[%clk 0:01:18]} 39. Rxa7 {[%clk 0:00:09]}  h5 {[%clk 0:01:19]} 40. Kg2 {[%clk 0:00:08]}  Rc2+ {[%clk 0:01:18]} 41. Kf1 {[%clk 0:00:08]}  Kf5 {[%clk 0:01:16]} 42. Rf7+ {[%clk 0:00:06]}  Kg4 {[%clk 0:01:15]} 43. Rf6 {[%clk 0:00:06]}  Kf3 {[%clk 0:01:15]} 44. Ke1 {[%clk 0:00:06]}  e3 {[%clk 0:01:15]} 45. Rd6 {[%clk 0:00:03]}  Rc1+ {[%clk 0:01:13]} 46. Rd1 {[%clk 0:00:03]}  Rxd1+ {[%clk 0:01:13]} 47. Kxd1 {[%clk 0:00:00]}  Kf2 {[%clk 0:01:14]} 0-1


[Site "https://www.chess.com"]

[Event "Titled Tuesday Blitz May 9 Late 2023"]
[White "Senft, Sean"]
[Black "Jonkman, Harmen"]
[WhiteFideId "2044960"]
[BlackFideId "1002708"]
[WhiteElo "1989"]
[BlackElo "2368"]
[Result "0-1"]
[Round "04"]
[TimeControl "180+2"]
[Date "2023.05.09"]
[WhiteClock "0:01:52"]
[BlackClock "0:00:51"]

1. d4 {[%clk 0:02:58]}  e6 {[%clk 0:02:54]} 2. c4 {[%clk 0:02:58]}  Nf6 {[%clk 0:02:54]} 3. Nc3 {[%clk 0:02:58]}  Bb4 {[%clk 0:02:54]} 4. Nf3 {[%clk 0:02:59]}  b6 {[%clk 0:02:54]} 5. Bg5 {[%clk 0:02:59]}  Bb7 {[%clk 0:02:54]} 6. e3 {[%clk 0:03:00]}  h6 {[%clk 0:02:54]} 7. Bh4 {[%clk 0:03:01]}  d6 {[%clk 0:02:52]} 8. Bd3 {[%clk 0:03:00]}  Nbd7 {[%clk 0:02:52]} 9. Qc2 {[%clk 0:03:01]}  e5 {[%clk 0:02:50]} 10. Nd2 {[%clk 0:02:56]}  exd4 {[%clk 0:02:38]} 11. exd4 {[%clk 0:02:57]}  g5 {[%clk 0:02:38]} 12. Bg3 {[%clk 0:02:57]}  Bxg2 {[%clk 0:02:38]} 13. Rg1 {[%clk 0:02:57]}  Bb7 {[%clk 0:02:37]} 14. O-O-O {[%clk 0:02:56]}  Bxc3 {[%clk 0:02:24]} 15. bxc3 {[%clk 0:02:54]}  Nh5 {[%clk 0:02:17]} 16. Rde1+ {[%clk 0:02:53]}  Kf8 {[%clk 0:02:17]} 17. Ne4 {[%clk 0:02:44]}  Ndf6 {[%clk 0:02:15]} 18. Rgf1 {[%clk 0:02:41]}  Bxe4 {[%clk 0:02:03]} 19. Bxe4 {[%clk 0:02:41]}  Rb8 {[%clk 0:02:04]} 20. f4 {[%clk 0:02:41]}  g4 {[%clk 0:02:03]} 21. Bf5 {[%clk 0:02:33]}  Nxg3 {[%clk 0:02:00]} 22. hxg3 {[%clk 0:02:33]}  b5 {[%clk 0:01:56]} 23. c5 {[%clk 0:02:31]}  dxc5 {[%clk 0:01:55]} 24. dxc5 {[%clk 0:02:31]}  b4 {[%clk 0:01:51]} 25. c4 {[%clk 0:02:30]}  Qd4 {[%clk 0:01:47]} 26. Kb1 {[%clk 0:02:31]}  Kg7 {[%clk 0:01:37]} 27. Re4 {[%clk 0:02:31]}  Qxc5 {[%clk 0:01:37]} 28. Re5 {[%clk 0:02:28]}  Qb6 {[%clk 0:01:36]} 29. c5 {[%clk 0:02:24]}  Qb5 {[%clk 0:01:35]} 30. Bd3 {[%clk 0:02:24]}  Qd7 {[%clk 0:01:31]} 31. Rd1 {[%clk 0:02:22]}  Rhd8 {[%clk 0:01:29]} 32. Be2 {[%clk 0:02:22]}  Qc6 {[%clk 0:01:28]} 33. Re1 {[%clk 0:02:10]}  a5 {[%clk 0:01:22]} 34. Qb2 {[%clk 0:02:10]}  Rd5 {[%clk 0:01:15]} 35. Bxg4 {[%clk 0:02:06]}  Rxc5 {[%clk 0:01:14]} 36. Bf3 {[%clk 0:01:57]}  Qd7 {[%clk 0:01:10]} 37. Rxc5 {[%clk 0:01:57]}  Qd3+ {[%clk 0:01:09]} 38. Ka1 {[%clk 0:01:52]}  Qxf3 {[%clk 0:01:08]} 39. Rc6 {[%clk 0:01:52]}  Qxc6 {[%clk 0:00:51]} 0-1


[Site "https://www.chess.com"]

[Event "Titled Tuesday Blitz May 9 Late 2023"]
[White "Sarkar, Justin"]
[Black "Gurevich, Dmitry"]
[WhiteFideId "2010011"]
[BlackFideId "2000407"]
[WhiteElo "2168"]
[BlackElo "2506"]
[Result "0-1"]
[Round "04"]
[TimeControl "180+2"]
[Date "2023.05.09"]
[WhiteClock "0:00:00"]
[BlackClock "0:00:11"]

1. e4 {[%clk 0:03:00]}  c5 {[%clk 0:02:55]} 2. Nf3 {[%clk 0:03:00]}  e6 {[%clk 0:02:53]} 3. d4 {[%clk 0:02:58]}  cxd4 {[%clk 0:02:53]} 4. Nxd4 {[%clk 0:02:59]}  a6 {[%clk 0:02:53]} 5. c4 {[%clk 0:02:53]}  Nf6 {[%clk 0:02:50]} 6. Nc3 {[%clk 0:02:51]}  Qc7 {[%clk 0:02:50]} 7. Be2 {[%clk 0:02:50]}  Be7 {[%clk 0:02:43]} 8. O-O {[%clk 0:02:47]}  O-O {[%clk 0:02:42]} 9. f4 {[%clk 0:02:44]}  d6 {[%clk 0:02:42]} 10. Qd3 {[%clk 0:02:41]}  Nbd7 {[%clk 0:02:41]} 11. b4 {[%clk 0:02:38]}  b6 {[%clk 0:02:40]} 12. Bb2 {[%clk 0:02:29]}  Bb7 {[%clk 0:02:40]} 13. Rac1 {[%clk 0:02:20]}  Rfe8 {[%clk 0:02:38]} 14. g4 {[%clk 0:02:08]}  e5 {[%clk 0:02:31]} 15. Nd5 {[%clk 0:01:53]}  Qd8 {[%clk 0:02:01]} 16. Nf5 {[%clk 0:01:50]}  Bxd5 {[%clk 0:01:54]} 17. cxd5 {[%clk 0:01:45]}  exf4 {[%clk 0:01:53]} 18. g5 {[%clk 0:01:31]}  Ne5 {[%clk 0:01:52]} 19. Bxe5 {[%clk 0:01:25]}  dxe5 {[%clk 0:01:45]} 20. d6 {[%clk 0:01:15]}  Bf8 {[%clk 0:01:41]} 21. gxf6 {[%clk 0:01:10]}  Qxf6 {[%clk 0:01:39]} 22. Rc7 {[%clk 0:00:45]}  Red8 {[%clk 0:01:30]} 23. Qd5 {[%clk 0:00:20]}  g6 {[%clk 0:01:14]} 24. Bc4 {[%clk 0:00:11]}  gxf5 {[%clk 0:01:05]} 25. Rxf7 {[%clk 0:00:10]}  Qg6+ {[%clk 0:01:04]} 26. Kh1 {[%clk 0:00:08]}  Kh8 {[%clk 0:01:02]} 27. exf5 {[%clk 0:00:07]}  Qxd6 {[%clk 0:00:54]} 28. Rxf8+ {[%clk 0:00:03]}  Qxf8 {[%clk 0:00:53]} 29. Qxe5+ {[%clk 0:00:04]}  Qg7 {[%clk 0:00:53]} 30. f6 {[%clk 0:00:04]}  Qg4 {[%clk 0:00:46]} 31. f7+ {[%clk 0:00:02]}  Qg7 {[%clk 0:00:46]} 32. Qxf4 {[%clk 0:00:02]}  Rf8 {[%clk 0:00:28]} 33. Rg1 {[%clk 0:00:02]}  Qc3 {[%clk 0:00:27]} 34. Rg8+ {[%clk 0:00:01]}  Rxg8 {[%clk 0:00:26]} 35. fxg8=R+ {[%clk 0:00:01]}  Rxg8 {[%clk 0:00:26]} 36. Bxg8 {[%clk 0:00:01]}  Kxg8 {[%clk 0:00:26]} 37. Qb8+ {[%clk 0:00:01]}  Kf7 {[%clk 0:00:25]} 38. Qb7+ {[%clk 0:00:01]}  Kg8 {[%clk 0:00:23]} 39. Qxb6 {[%clk 0:00:02]}  Qa1+ {[%clk 0:00:22]} 40. Kg2 {[%clk 0:00:02]}  Qxa2+ {[%clk 0:00:22]} 41. Kg3 {[%clk 0:00:02]}  Qb3+ {[%clk 0:00:22]} 42. Kg4 {[%clk 0:00:03]}  Qc4+ {[%clk 0:00:22]} 43. Kg3 {[%clk 0:00:03]}  Kf7 {[%clk 0:00:20]} 44. h3 {[%clk 0:00:03]}  Ke7 {[%clk 0:00:19]} 45. Qb7+ {[%clk 0:00:02]}  Kd6 {[%clk 0:00:18]} 46. Qxh7 {[%clk 0:00:02]}  Qc3+ {[%clk 0:00:17]} 47. Kg4 {[%clk 0:00:03]}  Qxb4+ {[%clk 0:00:17]} 48. Kg5 {[%clk 0:00:03]}  Qd2+ {[%clk 0:00:15]} 49. Kg4 {[%clk 0:00:03]}  Qg2+ {[%clk 0:00:14]} 50. Kf4 {[%clk 0:00:03]}  Qf2+ {[%clk 0:00:14]} 51. Kg4 {[%clk 0:00:03]}  Qe2+ {[%clk 0:00:13]} 52. Kg3 {[%clk 0:00:03]}  Qe5+ {[%clk 0:00:13]} 53. Kg2 {[%clk 0:00:03]}  a5 {[%clk 0:00:13]} 54. Qg6+ {[%clk 0:00:01]}  Kc5 {[%clk 0:00:12]} 55. Qc2+ {[%clk 0:00:01]}  Kb4 {[%clk 0:00:11]} 56. h4 {[%clk 0:00:00]}  a4 {[%clk 0:00:11]} 0-1


[Site "https://www.chess.com"]

[Event "Titled Tuesday Blitz May 9 Late 2023"]
[White "Ingunza Curro, Andres"]
[Black "Yeritsyan, Hayk"]
[WhiteFideId "24526371"]
[BlackFideId "13307320"]
[WhiteElo "2247"]
[BlackElo "2480"]
[Result "0-1"]
[Round "04"]
[TimeControl "180+2"]
[Date "2023.05.09"]
[WhiteClock "0:00:51"]
[BlackClock "0:00:46"]

1. d4 {[%clk 0:03:00]}  d5 {[%clk 0:02:58]} 2. c4 {[%clk 0:03:01]}  e6 {[%clk 0:02:59]} 3. Nf3 {[%clk 0:03:01]}  dxc4 {[%clk 0:02:59]} 4. e3 {[%clk 0:03:01]}  a6 {[%clk 0:02:59]} 5. a4 {[%clk 0:02:59]}  Nc6 {[%clk 0:02:58]} 6. Bxc4 {[%clk 0:02:59]}  Na5 {[%clk 0:02:58]} 7. Be2 {[%clk 0:02:58]}  c5 {[%clk 0:02:58]} 8. O-O {[%clk 0:02:58]}  Nf6 {[%clk 0:02:58]} 9. Qc2 {[%clk 0:02:45]}  cxd4 {[%clk 0:02:53]} 10. Nxd4 {[%clk 0:02:44]}  Bd7 {[%clk 0:02:50]} 11. Nc3 {[%clk 0:02:42]}  Nc6 {[%clk 0:02:48]} 12. Nxc6 {[%clk 0:02:40]}  Bxc6 {[%clk 0:02:49]} 13. Rd1 {[%clk 0:02:40]}  Qc7 {[%clk 0:02:46]} 14. b3 {[%clk 0:02:27]}  Bd6 {[%clk 0:02:45]} 15. h3 {[%clk 0:02:24]}  O-O {[%clk 0:02:32]} 16. Rxd6 {[%clk 0:02:18]}  Qxd6 {[%clk 0:02:30]} 17. Ba3 {[%clk 0:02:18]}  Qe5 {[%clk 0:02:21]} 18. Bxf8 {[%clk 0:02:18]}  Rxf8 {[%clk 0:02:21]} 19. Rd1 {[%clk 0:02:12]}  Rc8 {[%clk 0:02:12]} 20. Qd2 {[%clk 0:01:51]}  g6 {[%clk 0:01:57]} 21. Bf1 {[%clk 0:01:29]}  Kg7 {[%clk 0:01:33]} 22. Ne2 {[%clk 0:01:26]}  Bd5 {[%clk 0:01:29]} 23. b4 {[%clk 0:01:05]}  Rc7 {[%clk 0:00:55]} 24. Ng3 {[%clk 0:00:58]}  Bb3 {[%clk 0:00:47]} 25. Ra1 {[%clk 0:00:51]}  Qxa1 {[%clk 0:00:46]} 0-1


[Site "https://www.chess.com"]

[Event "Titled Tuesday Blitz May 9 Late 2023"]
[White "koncheto"]
[Black "Szente Varga, Fruzsina"]
[BlackFideId "712264"]
[WhiteElo "2478"]
[BlackElo "1994"]
[Result "1-0"]
[Round "04"]
[TimeControl "180+2"]
[Date "2023.05.09"]
[WhiteClock "0:00:02"]
[BlackClock "0:00:00"]

1. e4 {[%clk 0:03:00]}  e5 {[%clk 0:02:59]} 2. Nf3 {[%clk 0:03:00]}  Nc6 {[%clk 0:02:59]} 3. d4 {[%clk 0:02:58]}  exd4 {[%clk 0:02:58]} 4. Bc4 {[%clk 0:02:59]}  Bc5 {[%clk 0:02:54]} 5. c3 {[%clk 0:02:57]}  dxc3 {[%clk 0:02:51]} 6. Bxf7+ {[%clk 0:02:56]}  Kxf7 {[%clk 0:02:49]} 7. Qd5+ {[%clk 0:02:55]}  Kf8 {[%clk 0:02:38]} 8. Qxc5+ {[%clk 0:02:52]}  d6 {[%clk 0:02:39]} 9. Qxc3 {[%clk 0:02:50]}  Nf6 {[%clk 0:02:38]} 10. Bg5 {[%clk 0:02:44]}  Kf7 {[%clk 0:02:26]} 11. O-O {[%clk 0:02:39]}  Bg4 {[%clk 0:02:25]} 12. Nbd2 {[%clk 0:02:35]}  Re8 {[%clk 0:02:24]} 13. h3 {[%clk 0:02:31]}  Bh5 {[%clk 0:02:16]} 14. Qb3+ {[%clk 0:02:31]}  Kf8 {[%clk 0:02:14]} 15. Qxb7 {[%clk 0:02:28]}  Ne5 {[%clk 0:02:04]} 16. Nxe5 {[%clk 0:02:19]}  Rxe5 {[%clk 0:02:05]} 17. f4 {[%clk 0:02:15]}  Rc5 {[%clk 0:01:54]} 18. e5 {[%clk 0:01:56]}  dxe5 {[%clk 0:01:52]} 19. Qb4 {[%clk 0:01:51]}  Qe7 {[%clk 0:01:32]} 20. fxe5 {[%clk 0:01:46]}  Rxe5 {[%clk 0:01:28]} 21. Qxe7+ {[%clk 0:01:21]}  Kxe7 {[%clk 0:01:29]} 22. Rae1 {[%clk 0:01:10]}  Rxe1 {[%clk 0:01:17]} 23. Rxe1+ {[%clk 0:01:10]}  Kf7 {[%clk 0:01:06]} 24. Nc4 {[%clk 0:01:09]}  Kg6 {[%clk 0:00:51]} 25. Bd2 {[%clk 0:00:48]}  Kf7 {[%clk 0:00:32]} 26. g4 {[%clk 0:00:40]}  Bg6 {[%clk 0:00:31]} 27. Ne5+ {[%clk 0:00:40]}  Kg8 {[%clk 0:00:28]} 28. Nxg6 {[%clk 0:00:38]}  hxg6 {[%clk 0:00:29]} 29. Re7 {[%clk 0:00:38]}  Rb8 {[%clk 0:00:26]} 30. b3 {[%clk 0:00:34]}  Rd8 {[%clk 0:00:18]} 31. Be1 {[%clk 0:00:15]}  Rd1 {[%clk 0:00:18]} 32. Kf1 {[%clk 0:00:11]}  Rc1 {[%clk 0:00:18]} 33. a4 {[%clk 0:00:05]}  Nd5 {[%clk 0:00:18]} 34. Rd7 {[%clk 0:00:06]}  Nf4 {[%clk 0:00:18]} 35. h4 {[%clk 0:00:05]}  Ne6 {[%clk 0:00:14]} 36. Ke2 {[%clk 0:00:03]}  Rb1 {[%clk 0:00:14]} 37. Re7 {[%clk 0:00:03]}  Nd4+ {[%clk 0:00:13]} 38. Kd3 {[%clk 0:00:03]}  c5 {[%clk 0:00:12]} 39. b4 {[%clk 0:00:03]}  Nf3 {[%clk 0:00:09]} 40. Bc3 {[%clk 0:00:03]}  cxb4 {[%clk 0:00:09]} 41. Rxg7+ {[%clk 0:00:03]}  Kf8 {[%clk 0:00:09]} 42. Bf6 {[%clk 0:00:03]}  b3 {[%clk 0:00:08]} 43. Rxa7 {[%clk 0:00:03]}  Ne1+ {[%clk 0:00:08]} 44. Kc3 {[%clk 0:00:02]}  Nf3 {[%clk 0:00:08]} 45. Rb7 {[%clk 0:00:02]}  Rc1+ {[%clk 0:00:06]} 46. Kb2 {[%clk 0:00:01]}  Rc4 {[%clk 0:00:05]} 47. a5 {[%clk 0:00:01]}  Ra4 {[%clk 0:00:00]} 48. Bc3 {[%clk 0:00:02]} 1-0


[Site "https://www.chess.com"]

[Event "Titled Tuesday Blitz May 9 Late 2023"]
[White "Remolar Gallen, Jose"]
[Black "Celestino, Rafael Teixeira"]
[WhiteFideId "2215187"]
[BlackFideId "2108925"]
[WhiteElo "2223"]
[BlackElo "2327"]
[Result "1-0"]
[Round "04"]
[TimeControl "180+2"]
[Date "2023.05.09"]
[WhiteClock "0:00:06"]
[BlackClock "0:00:08"]

1. d4 {[%clk 0:03:00]}  Nf6 {[%clk 0:02:59]} 2. Nf3 {[%clk 0:03:00]}  e6 {[%clk 0:03:00]} 3. e3 {[%clk 0:03:00]}  d5 {[%clk 0:03:00]} 4. Bd3 {[%clk 0:03:00]}  Bd6 {[%clk 0:02:59]} 5. Nbd2 {[%clk 0:03:00]}  O-O {[%clk 0:03:00]} 6. b3 {[%clk 0:03:01]}  Nbd7 {[%clk 0:02:59]} 7. Bb2 {[%clk 0:03:01]}  b6 {[%clk 0:02:59]} 8. O-O {[%clk 0:03:01]}  Bb7 {[%clk 0:02:59]} 9. Qe2 {[%clk 0:03:01]}  c5 {[%clk 0:02:59]} 10. Rad1 {[%clk 0:03:01]}  Rc8 {[%clk 0:02:59]} 11. Ne5 {[%clk 0:02:58]}  Re8 {[%clk 0:02:58]} 12. f4 {[%clk 0:02:57]}  Ne4 {[%clk 0:02:58]} 13. Rf3 {[%clk 0:02:44]}  f5 {[%clk 0:02:53]} 14. Rh3 {[%clk 0:02:40]}  Ndf6 {[%clk 0:02:51]} 15. Ndf3 {[%clk 0:02:27]}  Rc7 {[%clk 0:02:40]} 16. Bb5 {[%clk 0:02:13]}  Rf8 {[%clk 0:02:29]} 17. dxc5 {[%clk 0:02:09]}  Bxc5 {[%clk 0:02:20]} 18. Nd4 {[%clk 0:02:04]}  Qc8 {[%clk 0:02:13]} 19. c4 {[%clk 0:01:52]}  a6 {[%clk 0:02:01]} 20. Ba4 {[%clk 0:01:30]}  b5 {[%clk 0:01:54]} 21. cxb5 {[%clk 0:01:12]}  Bxd4 {[%clk 0:01:53]} 22. Bxd4 {[%clk 0:01:09]}  Rc2 {[%clk 0:01:54]} 23. Qf1 {[%clk 0:01:07]}  Ng4 {[%clk 0:01:21]} 24. Rf3 {[%clk 0:00:53]}  Nd2 {[%clk 0:01:09]} 25. Qe1 {[%clk 0:00:21]}  Nxf3+ {[%clk 0:01:07]} 26. gxf3 {[%clk 0:00:20]}  Nf6 {[%clk 0:00:47]} 27. Nc6 {[%clk 0:00:08]}  Qe8 {[%clk 0:00:37]} 28. b4 {[%clk 0:00:05]}  Rxa2 {[%clk 0:00:34]} 29. Bb3 {[%clk 0:00:06]}  Qg6+ {[%clk 0:00:31]} 30. Qg3 {[%clk 0:00:04]}  Qxg3+ {[%clk 0:00:29]} 31. hxg3 {[%clk 0:00:05]}  Re2 {[%clk 0:00:29]} 32. Ne5 {[%clk 0:00:02]}  axb5 {[%clk 0:00:25]} 33. Bc5 {[%clk 0:00:03]}  Ra8 {[%clk 0:00:23]} 34. Rc1 {[%clk 0:00:03]}  d4 {[%clk 0:00:18]} 35. Bd1 {[%clk 0:00:02]}  Rb2 {[%clk 0:00:17]} 36. Bxd4 {[%clk 0:00:03]}  Rxb4 {[%clk 0:00:16]} 37. Be2 {[%clk 0:00:03]}  Nd5 {[%clk 0:00:14]} 38. Nd3 {[%clk 0:00:03]}  Rb3 {[%clk 0:00:13]} 39. Nc5 {[%clk 0:00:04]}  Rb2 {[%clk 0:00:10]} 40. Bxb2 {[%clk 0:00:03]}  Ba6 {[%clk 0:00:11]} 41. Nxa6 {[%clk 0:00:03]}  Rxa6 {[%clk 0:00:12]} 42. Bd4 {[%clk 0:00:03]}  Ra2 {[%clk 0:00:12]} 43. Bxb5 {[%clk 0:00:04]}  Nb4 {[%clk 0:00:11]} 44. Bc4 {[%clk 0:00:04]}  Ra3 {[%clk 0:00:09]} 45. Bxe6+ {[%clk 0:00:04]}  Kf8 {[%clk 0:00:08]} 46. Bc5+ {[%clk 0:00:05]}  Ke8 {[%clk 0:00:09]} 47. Bxb4 {[%clk 0:00:05]}  Ra4 {[%clk 0:00:08]} 48. Rc8# {[%clk 0:00:06]} 1-0


[Site "https://www.chess.com"]

[Event "Titled Tuesday Blitz May 9 Late 2023"]
[White "De Souza, Cristiano Gomes"]
[Black "Prydun, Andriy"]
[WhiteFideId "2151758"]
[BlackFideId "14145898"]
[WhiteElo "2068"]
[BlackElo "2164"]
[Result "1/2-1/2"]
[Round "04"]
[TimeControl "180+2"]
[Date "2023.05.09"]
[WhiteClock "0:00:36"]
[BlackClock "0:00:06"]

1. d4 {[%clk 0:03:00]}  c6 {[%clk 0:02:58]} 2. c4 {[%clk 0:02:59]}  d5 {[%clk 0:02:57]} 3. Nc3 {[%clk 0:02:59]}  Nf6 {[%clk 0:02:57]} 4. Nf3 {[%clk 0:02:59]}  e6 {[%clk 0:02:54]} 5. Bg5 {[%clk 0:02:58]}  dxc4 {[%clk 0:02:46]} 6. e4 {[%clk 0:02:57]}  b5 {[%clk 0:02:41]} 7. e5 {[%clk 0:02:57]}  h6 {[%clk 0:02:41]} 8. Bh4 {[%clk 0:02:57]}  g5 {[%clk 0:02:40]} 9. exf6 {[%clk 0:02:58]}  gxh4 {[%clk 0:02:39]} 10. Ne5 {[%clk 0:02:59]}  Qxf6 {[%clk 0:02:35]} 11. a4 {[%clk 0:02:58]}  Bb4 {[%clk 0:02:09]} 12. Be2 {[%clk 0:02:57]}  Bb7 {[%clk 0:02:06]} 13. Bf3 {[%clk 0:02:56]}  a6 {[%clk 0:01:58]} 14. O-O {[%clk 0:02:54]}  Bxc3 {[%clk 0:01:39]} 15. bxc3 {[%clk 0:02:53]}  Nd7 {[%clk 0:01:15]} 16. Nxc6 {[%clk 0:02:48]}  h3 {[%clk 0:01:09]} 17. g3 {[%clk 0:02:37]}  Rc8 {[%clk 0:00:58]} 18. d5 {[%clk 0:02:35]}  Bxc6 {[%clk 0:00:56]} 19. dxc6 {[%clk 0:02:34]}  Ne5 {[%clk 0:00:56]} 20. Be4 {[%clk 0:02:31]}  O-O {[%clk 0:00:16]} 21. axb5 {[%clk 0:02:29]}  axb5 {[%clk 0:00:17]} 22. Ra6 {[%clk 0:02:16]}  Qg7 {[%clk 0:00:08]} 23. Qh5 {[%clk 0:01:56]}  f5 {[%clk 0:00:07]} 24. Bf3 {[%clk 0:01:44]}  Qg5 {[%clk 0:00:05]} 25. Re1 {[%clk 0:01:38]}  Nd3 {[%clk 0:00:03]} 26. Qxg5+ {[%clk 0:01:31]}  hxg5 {[%clk 0:00:04]} 27. Rxe6 {[%clk 0:01:29]}  Rfe8 {[%clk 0:00:04]} 28. Bd5 {[%clk 0:01:23]}  Kh8 {[%clk 0:00:04]} 29. Ra7 {[%clk 0:01:14]}  Rxe6 {[%clk 0:00:04]} 30. Bxe6 {[%clk 0:01:12]}  Rxc6 {[%clk 0:00:04]} 31. Bxf5 {[%clk 0:01:08]}  b4 {[%clk 0:00:04]} 32. cxb4 {[%clk 0:01:00]}  Nxb4 {[%clk 0:00:05]} 33. Rh7+ {[%clk 0:00:54]}  Kg8 {[%clk 0:00:05]} 34. Rxh3 {[%clk 0:00:53]}  c3 {[%clk 0:00:04]} 35. Rh5 {[%clk 0:00:52]}  Rc5 {[%clk 0:00:04]} 36. Rxg5+ {[%clk 0:00:52]}  Kf8 {[%clk 0:00:04]} 37. h4 {[%clk 0:00:49]}  c2 {[%clk 0:00:04]} 38. Bxc2 {[%clk 0:00:48]}  Rxg5 {[%clk 0:00:05]} 39. hxg5 {[%clk 0:00:47]}  Nxc2 {[%clk 0:00:05]} 40. Kg2 {[%clk 0:00:47]}  Kg7 {[%clk 0:00:05]} 41. f4 {[%clk 0:00:42]}  Nd4 {[%clk 0:00:04]} 42. Kf2 {[%clk 0:00:42]}  Kg6 {[%clk 0:00:03]} 43. g4 {[%clk 0:00:41]}  Kg7 {[%clk 0:00:03]} 44. Ke3 {[%clk 0:00:41]}  Ne6 {[%clk 0:00:03]} 45. Ke4 {[%clk 0:00:41]}  Nd8 {[%clk 0:00:03]} 46. Kf5 {[%clk 0:00:40]}  Nf7 {[%clk 0:00:04]} 47. Ke6 {[%clk 0:00:40]}  Nd8+ {[%clk 0:00:03]} 48. Ke7 {[%clk 0:00:39]}  Nf7 {[%clk 0:00:04]} 49. Ke6 {[%clk 0:00:37]}  Nd8+ {[%clk 0:00:04]} 50. Ke5 {[%clk 0:00:37]}  Nf7+ {[%clk 0:00:05]} 51. Kf5 {[%clk 0:00:37]}  Nd6+ {[%clk 0:00:05]} 52. Ke5 {[%clk 0:00:37]}  Nf7+ {[%clk 0:00:05]} 53. Ke4 {[%clk 0:00:37]}  Nd6+ {[%clk 0:00:05]} 54. Kd5 {[%clk 0:00:37]}  Nf7 {[%clk 0:00:06]} 55. Ke6 {[%clk 0:00:36]} 1/2-1/2


[Site "https://www.chess.com"]